bitfinex-derivatives/quotes_BNBF0:USTF0_20250715
["timestamp","ask_amount","ask_price","bid_price","bid_amount"]
[1752597849122,0.98198434,685.8,685.23,0.97532293]
[1752597849620,0.98198434,685.8,685.22,0.97532293]
[1752597850316,0.98198434,685.79,685.22,0.97532293]
[1752597850719,0.98198434,685.79,685.23,0.97532293]
[1752597851720,0.98198434,685.83,685.25,0.97532293]
[1752597851921,0.98198434,685.93,685.2,0.97532293]
[1752597852316,0.98198434,685.96,685.24,0.97532293]
[1752597853919,0.98198434,685.94,685.22,0.97532293]
[1752597856524,0.98198434,685.94,685.23,0.97532293]
[1752597856827,0.98198434,685.97,685.26,0.97532293]
[1752597857127,0.98198434,685.98,685.26,0.97532293]
[1752597857526,0.98198434,685.99,685.27,0.97532293]
[1752597858829,0.98198434,686.01,685.25,0.97532293]
[1752597859132,0.98198434,686.0,685.26,0.97532293]
[1752597859334,0.98198434,686.0,685.25,0.97532293]
[1752597861332,0.98198434,685.93,685.29,0.97532293]
[1752597861632,0.98198434,685.94,685.29,0.97532293]
[1752597862134,0.98198434,685.93,685.29,0.97532293]
[1752597864233,0.98198434,685.92,685.29,0.97532293]
[1752597864732,0.98198434,685.93,685.29,0.97532293]
[1752597865134,0.98198434,685.93,685.3,0.97532293]
[1752597866154,0.98198434,685.92,685.3,0.97532293]
[1752597867242,0.98198434,685.92,685.31,0.97532293]
[1752597867939,0.98198434,685.91,685.31,0.97532293]
[1752597868744,0.98198434,685.86,685.34,0.97532293]
[1752597870140,0.98198434,685.86,685.35,0.97532293]
[1752597870338,0.98198434,685.87,685.34,0.97532293]
[1752597871139,0.98198434,685.86,685.35,0.97532293]
[1752597871443,0.98198434,685.85,685.35,0.97532293]
[1752597872141,0.98198434,685.86,685.35,0.97532293]
[1752597872845,0.25377102,686.1,685.1,1.9521499]
[1752597872846,0.98198434,685.88,685.36,0.97532293]
[1752597873142,0.98198434,685.89,685.36,0.97532293]
[1752597875143,0.98303037,685.89,685.36,0.97562195]
[1752597876646,0.98303037,685.88,685.35,0.97562195]
[1752597876943,0.98303037,685.81,685.27,0.97562195]
[1752597877343,0.25377102,686.1,685.27,0.97562195]
[1752597877344,0.98303037,685.8,685.27,0.97562195]
[1752597877543,0.98303037,685.81,685.27,0.97562195]
[1752597878849,0.98303037,685.82,685.29,0.97562195]
[1752597880152,0.98303037,685.82,685.3,0.97562195]
[1752597880645,0.98303037,685.87,685.32,0.97562195]
[1752597880845,0.98303037,685.91,685.36,0.97562195]
[1752597884753,0.98303037,685.92,685.35,0.97562195]
[1752597884958,0.98303037,685.92,685.36,0.97562195]
[1752597885860,0.98303037,685.93,685.37,0.97562195]
[1752597887653,0.98303037,685.91,685.38,0.97562195]
[1752597888847,0.98303037,685.91,685.39,0.97562195]
[1752597889152,0.98303037,685.92,685.39,0.97562195]
[1752597889753,0.98303037,685.93,685.39,0.97562195]
[1752597890750,0.98303037,685.93,685.42,0.97562195]
[1752597891250,0.98303037,685.93,685.41,0.97562195]
[1752597892155,0.98303037,685.94,685.41,0.97562195]
[1752597893155,0.98303037,685.93,685.41,0.97562195]
[1752597893452,0.98303037,685.94,685.41,0.97562195]
[1752597894056,0.98303037,685.97,685.39,0.97562195]
[1752597894351,0.98303037,686.0,685.4,0.97562195]
[1752597895152,0.98303037,686.01,685.4,0.97562195]
[1752597896358,0.98303037,686.01,685.39,0.97562195]
[1752597897253,0.98303037,686.01,685.4,0.97562195]
[1752597897457,0.98303037,686.01,685.39,0.97562195]
[1752597898058,0.98303037,686.03,685.41,0.97562195]
[1752597901157,0.98303037,686.04,685.41,0.97562195]
[1752597902162,0.25371181,686.24,684.52,3.2535832]
[1752597902163,0.98303037,686.07,685.43,0.97562195]
[1752597903960,0.98303037,686.05,685.44,0.97562195]
[1752597904258,0.98303037,686.03,685.46,0.97562195]
[1752597905260,0.98303037,686.03,685.45,0.97562195]
[1752597905459,0.98303037,686.03,685.46,0.97562195]
[1752597906565,0.98303037,686.03,685.45,0.97562195]
[1752597907564,0.98303037,686.03,685.46,0.97562195]
[1752597908164,0.98303037,686.03,685.45,0.97562195]
[1752597908376,0.98303037,686.04,685.45,0.97562195]
[1752597909372,0.98303037,686.03,685.45,0.97562195]
[1752597909968,0.98303037,686.02,685.46,0.97562195]
[1752597910870,0.98303037,686.02,685.47,0.97562195]
[1752597911673,0.98303037,686.01,685.47,0.97562195]
[1752597912473,0.98303037,686.02,685.46,0.97562195]
[1752597912780,0.98303037,686.21,685.46,0.97562195]
[1752597913374,0.98303037,686.21,685.45,0.97562195]
[1752597913671,0.98303037,686.24,685.48,0.97562195]
[1752597914073,0.98303037,686.25,685.48,0.97562195]
[1752597914476,0.98303037,686.26,685.47,0.97562195]
[1752597914676,0.98303037,686.2,685.5,0.97562195]
[1752597914979,0.98303037,686.19,685.52,0.97562195]
[1752597915277,0.98303037,686.2,685.51,0.97562195]
[1752597915576,0.98303037,686.21,685.5,0.97562195]
[1752597915977,0.98303037,686.28,685.47,0.97562195]
[1752597916184,0.98303037,686.27,685.47,0.97562195]
[1752597916384,0.98303037,686.28,685.46,0.97562195]
[1752597919284,0.98303037,686.28,685.45,0.97562195]
[1752597919480,0.98303037,686.29,685.45,0.97562195]
[1752597919985,0.98303037,686.29,685.46,0.97562195]
[1752597920280,0.98303037,686.29,685.45,0.97562195]
[1752597921378,0.98303037,686.18,685.52,0.97562195]
[1752597921879,0.98303037,686.19,685.51,0.97562195]
[1752597922291,0.98303037,686.18,685.51,0.97562195]
[1752597922583,0.98303037,686.13,685.45,0.97562195]
[1752597923179,0.98303037,686.12,685.46,0.97562195]
[1752597923779,0.98303037,686.11,685.46,0.97562195]
[1752597925182,0.98303037,686.12,685.45,0.97562195]
[1752597925485,0.98303037,686.12,685.46,0.97562195]
[1752597925882,0.98303037,686.13,685.45,0.97562195]
[1752597926080,0.98303037,686.12,685.45,0.97562195]
[1752597927583,0.98303037,686.13,685.43,0.97562195]
[1752597927788,0.98303037,686.13,685.41,0.97562195]
[1752597928287,0.98303037,686.12,685.41,0.97562195]
[1752597929588,0.98303037,686.12,685.42,0.97562195]
[1752597931183,0.98303037,686.12,685.43,0.97562195]
[1752597931387,0.98303037,686.11,685.43,0.97562195]
[1752597931583,0.98303037,686.1,685.43,0.97562195]
[1752597932285,0.98303037,686.09,685.44,0.97562195]
[1752597932787,0.98303037,686.1,685.44,0.97562195]
[1752597933384,0.98303037,686.09,685.43,0.97562195]
[1752597934089,0.98303037,686.09,685.42,0.97562195]
[1752597934290,0.98303037,686.09,685.43,0.97562195]
[1752597935591,0.98303037,686.06,685.4,0.97562195]
[1752597937594,0.98303037,686.07,685.4,0.97562195]
[1752597937794,0.98303037,686.07,685.39,0.97562195]
[1752597938498,0.98303037,686.07,685.4,0.97562195]
[1752597939095,0.98303037,686.08,685.39,0.97562195]
[1752597939296,0.98303037,686.07,685.4,0.97562195]
[1752597940398,0.98303037,686.06,685.41,0.97562195]
[1752597942201,0.98303037,686.07,685.4,0.97562195]
[1752597942601,0.98303037,686.06,685.41,0.97562195]
[1752597943802,0.98303037,686.16,685.35,0.97562195]
[1752597944298,0.98303037,686.15,685.35,0.97562195]
[1752597946703,0.98303037,686.13,685.34,0.97562195]
[1752597947399,1.310924,686.34,685.34,0.97562195]
[1752597947400,0.98303037,686.12,685.34,0.97562195]
[1752597948199,0.98303037,686.1,685.31,0.97562195]
[1752597948401,0.98303037,686.1,685.32,0.97562195]
[1752597952205,0.98303037,686.09,685.32,0.97562195]
[1752597953707,0.98303037,686.09,685.11,1.3014333]
[1752597953708,0.98303037,686.02,685.37,0.97562195]
[1752597955707,0.98303037,686.03,685.37,0.97562195]
[1752597956603,0.98303037,685.99,685.39,0.97562195]
[1752597958105,0.98303037,685.96,685.41,0.97562195]
[1752597958604,0.98303037,685.97,685.41,0.97562195]
[1752597958809,0.98303037,685.98,685.4,0.97562195]
[1752597959006,0.98303037,685.99,685.41,0.97562195]
[1752597959610,0.98303037,686.01,685.43,0.97562195]
[1752597959810,0.98303037,686.08,685.5,0.97562195]
[1752597960110,0.98303037,686.1,685.52,0.97562195]
[1752597960310,0.98303037,686.1,685.51,0.97562195]
[1752597961506,0.98303037,686.11,685.51,0.97562195]
[1752597964813,0.98303037,686.1,685.51,0.97562195]
[1752597965212,0.98303037,686.09,685.51,0.97562195]
[1752597965409,0.98303037,686.1,685.51,0.97562195]
[1752597969515,0.98303037,686.11,685.51,0.97562195]
[1752597969911,0.98303037,686.1,685.51,0.97562195]
[1752597971318,0.98303037,686.08,685.52,0.97562195]
[1752597971513,0.98303037,686.08,685.53,0.97562195]
[1752597972013,0.98303037,686.08,685.52,0.97562195]
[1752597972518,0.98303037,686.09,685.52,0.97562195]
[1752597974217,0.98303037,686.08,685.52,0.97562195]
[1752597976919,0.98303037,686.07,685.53,0.97562195]
[1752597979323,0.98303037,686.06,685.54,0.97562195]
[1752597980528,0.98303037,686.11,685.5,0.97562195]
[1752597982323,0.98303037,686.09,685.48,0.97562195]
[1752597982529,0.98303037,686.05,685.51,0.97562195]
[1752597982825,0.98303037,686.04,685.52,0.97562195]
[1752597983928,1.310924,686.16,684.78,3.2535832]
[1752597983929,0.98303037,686.06,685.5,0.97562195]
[1752597984128,0.98303037,685.99,685.44,0.97562195]
[1752597985128,0.98303037,685.98,685.44,0.97562195]
[1752597986225,0.98303037,685.99,685.44,0.97562195]
[1752597986427,0.98303037,685.99,685.45,0.97562195]
[1752597987626,0.98303037,685.99,685.32,1.3014333]
[1752597987627,0.98303037,685.98,685.44,0.97562195]
[1752597988031,0.98303037,685.99,685.44,0.97562195]
[1752597988229,1.310924,686.12,685.44,0.97562195]
[1752597988230,0.98303037,685.98,685.44,0.97562195]
[1752597988527,0.98303037,685.99,685.44,0.97562195]
[1752597988927,0.98303037,685.98,685.44,0.97562195]
[1752597989432,0.98303037,685.96,685.45,0.97562195]
[1752597990532,0.98303037,685.97,685.45,0.97562195]
[1752597991130,0.98303037,685.97,685.46,0.97562195]
[1752597995134,0.98303037,685.96,685.46,0.97562195]
[1752597997336,0.98303037,685.96,685.47,0.97562195]
[1752597997832,0.98303037,685.96,685.46,0.97562195]
[1752597999437,0.98303037,685.97,685.46,0.97562195]
[1752598000138,0.98303037,686.0,685.43,0.97562195]
[1752598001736,0.98303037,685.99,685.42,0.97562195]
[1752598003139,0.98303037,685.97,685.4,0.97562195]
[1752598004236,0.98303037,685.98,685.39,0.97562195]
[1752598004636,0.98303037,685.94,685.41,0.97562195]
[1752598005137,0.98303037,685.95,685.42,0.97562195]
[1752598005341,0.98303037,685.95,685.41,0.97562195]
[1752598005642,0.98303037,685.91,685.38,0.97562195]
[1752598007243,0.98303037,685.91,685.37,0.97562195]
[1752598009345,0.98303037,685.93,685.37,0.97562195]
[1752598010345,0.98303037,685.93,685.36,0.97562195]
[1752598010943,0.98303037,685.92,685.36,0.97562195]
[1752598011250,0.98303037,685.93,685.36,0.97562195]
[1752598012047,0.98303037,685.94,685.35,0.97562195]
[1752598012451,0.98303037,685.93,685.34,0.97562195]
[1752598012649,0.98303037,685.93,685.33,0.97562195]
[1752598013152,0.98303037,685.94,685.33,0.97562195]
[1752598013453,0.98303037,685.89,685.25,0.97562195]
[1752598013657,0.98303037,685.83,685.28,0.97562195]
[1752598013857,0.98303037,685.77,685.25,0.97562195]
[1752598014259,1.310924,685.88,684.34,4.5550165]
[1752598014260,0.98303037,685.78,685.24,0.97562195]
[1752598015362,0.98303037,685.79,685.22,0.97562195]
[1752598016259,1.9663861,686.02,685.22,0.97562195]
[1752598016260,0.98303037,685.8,685.22,0.97562195]
[1752598016460,0.98303037,685.81,685.21,0.97562195]
[1752598016761,0.98303037,685.82,685.2,0.97562195]
[1752598017360,0.98303037,685.83,685.19,0.97562195]
[1752598018061,0.98303037,685.85,685.2,0.97562195]
[1752598018267,0.98303037,685.86,685.2,0.97562195]
[1752598018562,0.98303037,685.86,685.21,0.97562195]
[1752598019262,0.98303037,685.87,685.2,0.97562195]
[1752598022264,0.98303037,685.88,685.19,0.97562195]
[1752598022966,0.98303037,685.87,685.19,0.97562195]
[1752598023867,0.98303037,685.87,685.18,0.97562195]
[1752598024366,0.98303037,685.88,685.18,0.97562195]
[1752598025068,0.98303037,685.89,685.17,0.97562195]
[1752598025472,0.98303037,685.89,685.16,0.97562195]
[1752598025672,0.98303037,685.88,685.17,0.97562195]
[1752598026467,0.98303037,685.88,685.16,0.97562195]
[1752598026866,0.98303037,685.88,685.17,0.97562195]
[1752598027369,0.98303037,685.88,685.16,0.97562195]
[1752598029476,0.98303037,685.89,685.16,0.97562195]
[1752598029974,0.98303037,685.89,685.17,0.97562195]
[1752598030375,0.98303037,685.89,685.16,0.97562195]
[1752598031076,0.98303037,685.89,685.17,0.97562195]
[1752598031574,0.98303037,685.89,685.16,0.97562195]
[1752598031974,0.98303037,685.87,685.15,0.97562195]
[1752598032375,0.98303037,685.87,685.01,1.3014333]
[1752598032376,0.98303037,685.87,685.14,0.97562195]
[1752598032576,0.98303037,685.85,685.15,0.97562195]
[1752598033273,0.98303037,685.84,685.15,0.97562195]
[1752598033574,0.98303037,685.85,685.15,0.97562195]
[1752598033775,0.98303037,685.84,685.15,0.97562195]
[1752598033979,0.98303037,685.86,685.14,0.97562195]
[1752598034273,0.98303037,685.85,685.14,0.97562195]
[1752598034478,0.98303037,685.86,685.14,0.97562195]
[1752598034678,0.98303037,685.85,685.14,0.97562195]
[1752598035474,0.98303037,685.85,685.15,0.97562195]
[1752598037278,0.98303037,685.85,685.03,1.3014333]
[1752598037279,0.98303037,685.85,685.16,0.97562195]
[1752598039382,0.98303037,685.84,685.16,0.97562195]
[1752598039582,0.98303037,685.89,685.13,0.97562195]
[1752598039878,0.98303037,685.9,685.13,0.97562195]
[1752598040281,0.98303037,685.89,685.14,0.97562195]
[1752598040676,0.98303037,685.88,685.14,0.97562195]
[1752598041178,0.98303037,685.88,685.15,0.97562195]
[1752598041478,0.98303037,685.88,685.14,0.97562195]
[1752598042778,1.9663861,686.18,684.85,1.9521499]
[1752598042982,0.25366928,686.43,684.83,0.25376454]
[1752598043379,0.9809008,685.92,685.2,0.97328728]
[1752598043980,0.9809008,685.92,685.19,0.97328728]
[1752598044180,0.9809008,685.93,685.2,0.97328728]
[1752598044879,0.9809008,685.93,685.05,1.2977163]
[1752598044880,0.9809008,685.94,685.21,0.97328728]
[1752598046687,0.9809008,685.95,685.2,0.97328728]
[1752598047187,0.9809008,685.98,685.18,0.97328728]
[1752598047388,0.9809008,685.96,685.2,0.97328728]
[1752598047583,0.25366928,686.43,685.2,0.97328728]
[1752598047584,0.9809008,685.95,685.2,0.97328728]
[1752598050285,0.9809008,685.94,685.21,0.97328728]
[1752598050491,0.9809008,685.98,685.26,0.97328728]
[1752598051490,0.9809008,685.92,685.3,0.97328728]
[1752598052187,0.9809008,685.93,685.3,0.97328728]
[1752598052688,0.9809008,686.01,685.24,0.97328728]
[1752598052993,0.9809008,686.08,685.32,0.97328728]
[1752598053487,0.9809008,686.09,685.32,0.97328728]
[1752598054290,0.9809008,686.08,685.32,0.97328728]
[1752598054492,0.9809008,686.09,685.32,0.97328728]
[1752598054687,0.9809008,686.08,685.32,0.97328728]
[1752598057487,0.9809008,686.09,685.32,0.97328728]
[1752598058190,0.9809008,686.08,685.33,0.97328728]
[1752598058493,0.9809008,686.1,685.32,0.97328728]
[1752598058694,0.9809008,686.04,685.35,0.97328728]
[1752598058988,0.9809008,686.05,685.35,0.97328728]
[1752598059688,0.9809008,686.04,685.36,0.97328728]
[1752598060496,0.9809008,686.06,685.39,0.97328728]
[1752598060791,0.9809008,686.06,685.42,0.97328728]
[1752598060996,0.9809008,686.13,685.5,0.97328728]
[1752598061295,0.9809008,686.08,685.44,0.97328728]
[1752598062091,0.25366928,686.43,685.44,0.97328728]
[1752598062092,0.9809008,686.07,685.44,0.97328728]
[1752598062297,0.9809008,686.07,685.43,0.97328728]
[1752598063092,0.9809008,686.06,685.43,0.97328728]
[1752598063396,0.9809008,686.07,685.43,0.97328728]
[1752598063595,0.9809008,686.08,685.42,0.97328728]
[1752598063895,0.9809008,686.07,685.42,0.97328728]
[1752598065197,0.9809008,686.14,685.38,0.97328728]
[1752598065500,0.9809008,686.13,685.39,0.97328728]
[1752598065700,0.9809008,686.14,685.38,0.97328728]
[1752598066302,0.9809008,686.14,685.37,0.97328728]
[1752598067003,0.9809008,686.1,685.4,0.97328728]
[1752598067201,0.9809008,686.11,685.39,0.97328728]
[1752598067415,0.9809008,686.23,685.48,0.97328728]
[1752598067703,0.9809008,686.22,685.48,0.97328728]
[1752598068002,0.9809008,686.25,685.47,0.97328728]
[1752598068197,0.9809008,686.24,685.46,0.97328728]
[1752598068497,0.9809008,686.19,685.39,0.97328728]
[1752598068897,0.9809008,686.23,685.36,0.97328728]
[1752598069304,0.9809008,686.24,685.36,0.97328728]
[1752598069502,0.9809008,686.24,685.35,0.97328728]
[1752598069899,0.9809008,686.24,685.36,0.97328728]
[1752598070202,0.9809008,686.25,685.36,0.97328728]
[1752598070704,0.9809008,686.24,685.35,0.97328728]
[1752598071202,0.9809008,686.25,685.35,0.97328728]
[1752598072199,0.9809008,686.22,685.37,0.97328728]
[1752598072499,0.9809008,686.2,685.35,0.97328728]
[1752598073103,0.9809008,686.19,685.33,0.97328728]
[1752598074103,0.9809008,686.2,685.33,0.97328728]
[1752598074401,0.9809008,686.12,685.38,0.97328728]
[1752598074902,0.9809008,686.13,685.37,0.97328728]
[1752598075102,0.9809008,686.06,685.3,0.97328728]
[1752598075301,0.9809008,686.05,685.29,0.97328728]
[1752598075805,0.9809008,686.03,685.3,0.97328728]
[1752598076406,0.9809008,686.02,685.29,0.97328728]
[1752598077406,0.9809008,686.01,685.29,0.97328728]
[1752598078704,0.9809008,686.01,685.3,0.97328728]
[1752598080008,0.9809008,686.0,685.3,0.97328728]
[1752598080306,0.9809008,686.01,685.3,0.97328728]
[1752598081813,0.9809008,685.99,685.31,0.97328728]
[1752598082912,0.9809008,686.0,685.3,0.97328728]
[1752598083211,0.9809008,686.0,685.31,0.97328728]
[1752598083409,0.9809008,685.99,685.31,0.97328728]
[1752598084315,1.3078677,686.12,685.18,1.2977163]
[1752598084507,0.98027747,685.99,685.31,0.97352718]
[1752598085212,0.98027747,685.98,685.29,0.97352718]
[1752598085513,0.98027747,685.99,685.29,0.97352718]
[1752598086210,0.98027747,685.98,685.3,0.97352718]
[1752598086809,0.98027747,686.0,685.29,0.97352718]
[1752598087108,0.98027747,686.0,685.3,0.97352718]
[1752598087312,0.98027747,685.99,685.3,0.97352718]
[1752598088015,0.98027747,686.01,685.29,0.97352718]
[1752598088711,0.98027747,686.03,685.28,0.97352718]
[1752598088915,0.98027747,686.02,685.28,0.97352718]
[1752598089914,0.98027747,686.03,685.28,0.97352718]
[1752598090912,0.98027747,686.02,685.28,0.97352718]
[1752598092116,0.98027747,686.08,685.35,0.97352718]
[1752598093816,0.98027747,686.08,685.36,0.97352718]
[1752598094214,0.98027747,686.03,685.39,0.97352718]
[1752598095018,0.98027747,686.09,685.45,0.97352718]
[1752598095720,0.98027747,686.13,685.52,0.97352718]
[1752598100322,0.98027747,686.12,685.52,0.97352718]
[1752598101224,0.98027747,686.13,685.52,0.97352718]
[1752598101421,1.9618016,686.35,685.52,0.97352718]
[1752598101422,0.98027747,686.12,685.52,0.97352718]
[1752598102327,0.98027747,686.12,685.53,0.97352718]
[1752598102827,0.98027747,686.17,685.49,0.97352718]
[1752598103127,0.98027747,686.18,685.49,0.97352718]
[1752598104927,0.98027747,686.19,685.48,0.97352718]
[1752598105724,0.98027747,686.18,685.48,0.97352718]
[1752598106028,0.98027747,686.19,685.48,0.97352718]
[1752598106524,0.98027747,686.18,685.49,0.97352718]
[1752598107128,0.98027747,686.18,685.48,0.97352718]
[1752598107427,0.98027747,686.19,685.48,0.97352718]
[1752598107727,0.98027747,686.16,685.5,0.97352718]
[1752598107928,0.98027747,686.17,685.5,0.97352718]
[1752598108229,0.98027747,686.17,685.51,0.97352718]
[1752598108528,0.98027747,686.2,685.54,0.97352718]
[1752598109433,0.98027747,686.19,685.55,0.97352718]
[1752598110133,0.98027747,686.2,685.55,0.97352718]
[1752598110433,0.98027747,686.19,685.55,0.97352718]
[1752598110633,0.98027747,686.18,685.55,0.97352718]
[1752598111229,0.98027747,686.19,685.55,0.97352718]
[1752598112234,0.98027747,686.19,685.54,0.97352718]
[1752598112530,0.98027747,686.19,685.55,0.97352718]
[1752598113135,0.98027747,686.19,685.54,0.97352718]
[1752598113436,0.98027747,686.21,685.53,0.97352718]
[1752598113636,0.98027747,686.19,685.54,0.97352718]
[1752598114132,0.98027747,686.2,685.54,0.97352718]
[1752598117136,0.98027747,686.21,685.54,0.97352718]
[1752598117535,1.3078677,686.34,685.54,0.97352718]
[1752598117536,0.98027747,686.2,685.54,0.97352718]
[1752598119138,0.98027747,686.19,685.55,0.97352718]
[1752598120136,0.98027747,686.17,685.53,0.97352718]
[1752598121238,0.98027747,686.16,685.44,0.97352718]
[1752598121433,0.98027747,686.16,685.12,1.9465745]
[1752598121434,0.98027747,686.16,685.43,0.97352718]
[1752598121635,0.98027747,686.14,685.41,0.97352718]
[1752598121838,0.98027747,686.14,685.25,1.2977163]
[1752598121839,0.98027747,686.13,685.4,0.97352718]
[1752598122039,0.98027747,686.13,685.41,0.97352718]
[1752598122442,0.98027747,686.13,685.4,0.97352718]
[1752598123839,0.98027747,686.18,685.36,0.97352718]
[1752598124041,0.98027747,686.17,685.37,0.97352718]
[1752598124339,0.98027747,686.17,685.19,1.2977163]
[1752598124340,0.98027747,686.16,685.36,0.97352718]
[1752598125239,0.98027747,686.15,685.36,0.97352718]
[1752598126044,0.98027747,686.08,685.4,0.97352718]
[1752598126343,0.98027747,686.08,685.41,0.97352718]
[1752598126545,0.98027747,686.05,685.39,0.97352718]
[1752598126739,0.98027747,686.03,685.4,0.97352718]
[1752598126941,0.98027747,686.0,685.37,0.97352718]
[1752598127144,0.98027747,686.01,685.36,0.97352718]
[1752598128047,0.25367205,686.32,685.33,0.97352718]
[1752598128048,0.98027747,685.98,685.33,0.97352718]
[1752598128647,0.25367205,686.32,684.83,0.25376454]
[1752598128648,0.98027747,685.97,685.32,0.97352718]
[1752598130349,0.98027747,685.97,685.31,0.97352718]
[1752598134252,0.98027747,685.99,685.29,0.97352718]
[1752598135051,1.3078677,686.14,685.29,0.97352718]
[1752598135052,0.98027747,686.0,685.29,0.97352718]
[1752598136558,0.98027747,686.01,685.28,0.97352718]
[1752598136857,0.98027747,686.01,685.27,0.97352718]
[1752598138159,0.98027747,686.01,685.28,0.97352718]
[1752598138356,0.98027747,685.98,685.25,0.97352718]
[1752598138561,0.98027747,685.98,685.24,0.97352718]
[1752598138766,0.98027747,685.95,685.22,0.97352718]
[1752598139256,0.98027747,685.93,685.23,0.97352718]
[1752598140562,0.98027747,685.83,685.14,0.97352718]
[1752598141462,0.98027747,685.84,685.13,0.97352718]
[1752598142061,0.98027747,685.82,685.12,0.97352718]
[1752598142266,0.98027747,685.83,685.11,0.97352718]
[1752598142465,0.98027747,685.81,685.09,0.97352718]
[1752598142866,0.98027747,685.81,685.08,0.97352718]
[1752598143266,0.98027747,685.82,685.07,0.97352718]
[1752598144167,0.98027747,685.81,685.06,0.97352718]
[1752598144367,0.98027747,685.82,685.06,0.97352718]
[1752598144567,0.98027747,685.8,685.08,0.97352718]
[1752598145269,0.98027747,685.81,685.07,0.97352718]
[1752598145468,0.98027747,685.94,684.98,0.97352718]
[1752598146265,0.98027747,685.95,684.97,0.97352718]
[1752598146864,0.98027747,685.94,684.97,0.97352718]
[1752598147164,0.98027747,685.95,684.96,0.97352718]
[1752598148270,0.98027747,685.96,684.96,0.97352718]
[1752598148466,0.98027747,685.9,684.9,0.97352718]
[1752598149270,0.98027747,685.91,684.89,0.97352718]
[1752598150269,0.98027747,685.92,684.88,0.97352718]
[1752598151268,0.98027747,685.93,684.88,0.97352718]
[1752598151467,1.3078677,686.12,684.83,0.25376454]
[1752598151468,0.98027747,685.92,684.87,0.97352718]
[1752598152269,0.98027747,685.95,684.88,0.97352718]
[1752598152468,0.98027747,685.86,684.94,0.97352718]
[1752598152670,0.98027747,685.86,684.83,0.25376454]
[1752598152671,0.98027747,685.86,684.93,0.97352718]
[1752598152973,0.98027747,685.82,684.96,0.97352718]
[1752598153174,0.98027747,685.82,684.95,0.97352718]
[1752598153473,0.98027747,685.83,684.95,0.97352718]
[1752598154175,0.98027747,685.83,684.94,0.97352718]
[1752598155474,0.98027747,685.85,684.94,0.97352718]
[1752598155874,0.98027747,685.84,684.94,0.97352718]
[1752598156170,0.98027747,685.85,684.93,0.97352718]
[1752598157373,0.98027747,685.86,684.92,0.97352718]
[1752598157977,0.98027747,685.85,684.93,0.97352718]
[1752598158177,0.98027747,685.86,684.92,0.97352718]
[1752598158874,0.98027747,685.86,684.83,0.25376454]
[1752598158875,0.98027747,685.89,684.9,0.97352718]
[1752598160279,0.98027747,685.9,684.89,0.97352718]
[1752598161476,0.98027747,685.91,684.89,0.97352718]
[1752598161680,0.98027747,685.91,684.9,0.97352718]
[1752598162382,0.98027747,685.9,684.89,0.97352718]
[1752598163484,0.98027747,685.89,684.89,0.97352718]
[1752598166685,0.98027747,685.88,684.89,0.97352718]
[1752598167488,0.98027747,685.89,684.9,0.97352718]
[1752598167986,0.98027747,685.85,684.92,0.97352718]
[1752598168182,0.98027747,685.84,684.93,0.97352718]
[1752598168882,0.98027747,685.86,684.92,0.97352718]
[1752598169286,0.98027747,685.85,684.92,0.97352718]
[1752598171090,0.98027747,685.85,684.93,0.97352718]
[1752598172787,0.98027747,685.83,684.92,0.97352718]
[1752598172988,0.97747629,685.83,684.92,0.97227115]
[1752598173188,0.97747629,685.82,684.92,0.97227115]
[1752598173487,0.97747629,685.85,684.92,0.97227115]
[1752598174289,0.97747629,685.92,684.87,0.97227115]
[1752598175085,0.97747629,685.91,684.88,0.97227115]
[1752598176289,0.97747629,685.91,684.89,0.97227115]
[1752598177091,0.97747629,685.9,684.9,0.97227115]
[1752598177691,0.97747629,685.89,684.9,0.97227115]
[1752598178193,0.97747629,685.88,684.91,0.97227115]
[1752598178489,0.97747629,685.91,684.94,0.97227115]
[1752598178993,0.97747629,685.92,684.94,0.97227115]
[1752598179189,0.97747629,685.91,684.95,0.97227115]
[1752598180190,0.97747629,685.9,684.96,0.97227115]
[1752598181092,0.97747629,685.89,684.97,0.97227115]
[1752598181295,0.97747629,685.89,684.98,0.97227115]
[1752598181695,0.97747629,685.88,684.97,0.97227115]
[1752598182090,0.97747629,685.87,684.98,0.97227115]
[1752598182597,0.97747629,685.86,684.99,0.97227115]
[1752598183193,0.97747629,685.85,684.99,0.97227115]
[1752598183396,0.97747629,685.85,684.83,0.25376454]
[1752598183397,0.97747629,685.84,684.98,0.97227115]
[1752598184094,0.97747629,685.77,684.93,0.97227115]
[1752598185196,0.97747629,685.77,684.94,0.97227115]
[1752598185598,0.97747629,685.75,684.92,0.97227115]
[1752598186302,0.97747629,685.65,684.98,0.97227115]
[1752598186498,0.97747629,685.66,684.98,0.97227115]
[1752598187202,0.97747629,685.59,684.91,0.97227115]
[1752598188102,0.97747629,685.58,684.91,0.97227115]
[1752598188299,0.97747629,685.59,684.91,0.97227115]
[1752598189004,0.97747629,685.6,684.9,0.97227115]
[1752598189204,0.97747629,685.61,684.9,0.97227115]
[1752598189403,0.97747629,685.59,684.88,0.97227115]
[1752598191106,0.97747629,685.59,684.89,0.97227115]
[1752598191302,0.97747629,685.59,684.88,0.97227115]
[1752598191604,0.97747629,685.59,684.89,0.97227115]
[1752598192103,0.97747629,685.58,684.89,0.97227115]
[1752598192303,0.97747629,685.59,684.88,0.97227115]
[1752598193006,0.97747629,685.59,684.89,0.97227115]
[1752598194208,0.97747629,685.58,684.89,0.97227115]